bitfinex/quotes_ETHUSD_20241225
["timestamp","ask_amount","ask_price","bid_price","bid_amount"]
[1735166340786,1.24771618,3478.0,3477.6,37.48239256]
[1735166340950,1.24771618,3478.0,3477.7,0.99295702]
[1735166342084,1.24771618,3478.0,3477.3,36.19568448]
[1735166342392,0.48201618,3478.0,3477.3,36.19568448]
[1735166342594,0.7764,3477.9,3477.3,36.19568448]
[1735166343367,0.7764,3477.9,3477.4,2.48287666]
[1735166345167,0.7764,3477.9,3477.3,35.0]
[1735166346593,0.7764,3478.1,3477.6,1.19154451]
[1735166346794,1.2044918,3478.2,3477.6,3.49196451]
[1735166347257,1.2044918,3478.2,3477.7,2.30036]
[1735166347662,1.2044918,3478.2,3478.0,1.19154451]
[1735166347860,1.2044918,3478.2,3478.0,1.94434451]
[1735166348173,1.2044918,3478.2,3478.1,0.42446145]
[1735166348375,0.55,3478.6,3478.1,0.42446145]
[1735166348572,1.2044918,3478.7,3478.2,1.19154451]
[1735166348783,1.2044918,3478.7,3478.3,35.0]
[1735166349096,1.2044918,3478.7,3478.4,1.19154451]
[1735166349802,1.2044918,3479.1,3478.4,1.19154451]
[1735166350161,1.2044918,3479.1,3478.3,40.14622631]
[1735166350481,1.2044918,3479.1,3478.4,0.7528]
[1735166350788,1.2044918,3479.1,3478.5,3.24923179]
[1735166351377,1.2044918,3479.1,3478.5,0.94940179]
[1735166351575,1.2044918,3479.1,3478.6,2.29973]
[1735166351776,2.58313771,3479.3,3478.5,0.94940179]
[1735166351777,1.9808918,3479.6,3478.7,2.29969]
[1735166351980,1.9808918,3479.6,3478.8,0.32490918]
[1735166352400,1.9808918,3479.6,3478.5,0.94940179]
[1735166352579,0.55,3479.5,3478.6,0.02874372]
[1735166352978,0.55,3479.5,3478.5,3.24922179]
[1735166353300,1.9808918,3479.6,3478.5,0.94940179]
[1735166353609,0.7764,3479.6,3478.8,2.47714928]
[1735166353810,0.7764,3479.6,3478.8,3.54678142]
[1735166354407,0.7764,3479.6,3478.9,0.7528]
[1735166355314,0.7764,3479.6,3478.9,0.78154133]
[1735166356218,1.2044918,3480.1,3479.0,2.2995]
[1735166356378,0.55,3480.0,3479.1,0.33397026]
[1735166357096,1.2044918,3480.1,3479.2,0.8186]
[1735166357715,1.2044918,3480.1,3479.4,2.29924]
[1735166358130,0.7651,3480.2,3479.4,2.29924]
[1735166358734,0.7651,3480.2,3479.4,37.29924]
[1735166358902,0.7651,3480.2,3479.5,2.84628631]
[1735166359302,0.7651,3480.2,3479.5,5.14545631]
[1735166359638,1.3151,3480.7,3479.5,2.29917]
[1735166359839,1.3151,3480.7,3479.6,0.8186]
[1735166360136,3.6135,3480.7,3479.6,0.8186]
[1735166360942,0.55,3480.5,3479.6,0.8186]
[1735166361115,0.55,3480.5,3479.6,1.13039]
[1735166361502,0.55,3480.5,3479.6,0.8186]
[1735166362564,2.84852,3480.5,3479.6,0.8186]
[1735166364168,0.55,3480.6,3479.6,0.8186]
[1735166365141,2.84845,3480.6,3479.6,0.8186]
[1735166366465,2.84845,3480.6,3479.6,35.8186]
[1735166366646,2.84845,3480.6,3479.6,38.66488631]
[1735166367771,2.29853,3480.5,3479.6,38.66488631]
[1735166369835,0.824,3480.2,3479.1,2.60466]
[1735166370036,0.824,3480.2,3479.2,0.8312]
[1735166370335,0.824,3480.2,3479.3,35.0]
[1735166372139,2.29868,3480.3,3479.4,0.8256]
[1735166372361,2.29868,3480.3,3479.5,2.84628631]
[1735166372670,2.29868,3480.3,3479.4,0.8256]
[1735166372913,2.29868,3480.3,3479.6,35.0]
[1735166373232,0.55,3480.4,3479.6,36.19015178]
[1735166373436,0.57068405,3481.3,3480.2,1.19015178]
[1735166373740,3.12593,3481.4,3480.3,3.12422]
[1735166373940,0.828,3481.4,3480.4,2.29857]
[1735166374142,0.828,3481.4,3480.5,35.0]
[1735166376475,0.55,3481.3,3480.5,35.0]
[1735166376694,0.55,3481.3,3480.6,2.84628631]
[1735166377199,0.55,3481.3,3480.3,0.8256]
[1735166377361,0.55,3481.3,3480.7,35.0]
[1735166378969,0.55,3481.3,3480.4,2.29858]
[1735166379302,0.828,3481.4,3480.5,2.29845]
[1735166379598,0.828,3481.4,3480.6,37.61371788]
[1735166379954,0.828,3481.4,3480.9,0.8256]
[1735166380155,0.55,3482.2,3480.9,0.8256]
[1735166380362,0.55,3482.0,3481.1,2.29811]
[1735166381162,0.828,3482.1,3481.0,2.29819]
[1735166381380,0.828,3482.1,3480.9,0.8256]
[1735166381555,0.828,3482.1,3481.2,2.29804]
[1735166382456,0.55,3482.0,3481.2,2.29804]
[1735166383179,0.55,3482.0,3480.9,0.8256]
[1735166383386,0.55,3482.0,3481.0,0.312388]
[1735166388003,0.55,3482.0,3481.1,35.0]
[1735166395594,2.84754,3482.0,3481.1,35.0]
[1735166398134,0.7937,3481.5,3481.1,35.0]
[1735166398436,3.09169,3481.3,3480.4,3.0]
[1735166398633,3.09169,3481.3,3480.5,1.02768608]
[1735166398810,3.09169,3481.3,3480.5,36.02768608]
[1735166398992,2.29812,3481.1,3480.5,35.0]
[1735166399198,0.7937,3481.1,3480.5,35.0]
[1735166399532,0.7937,3480.8,3480.5,35.0]
[1735166400225,2.29839,3480.7,3480.5,35.0]
[1735166400537,2.29839,3480.7,3479.8,1.19568448]
[1735166400538,0.55,3480.5,3479.8,1.19568448]
[1735166400732,0.7706,3480.4,3479.8,1.19568448]
[1735166400936,0.7706,3480.9,3479.9,38.07521]
[1735166401296,0.7706,3480.9,3479.9,37.29891]
[1735166402138,0.7706,3480.9,3479.9,35.0]
[1735166402703,3.06886,3480.9,3479.9,35.0]
[1735166403003,0.7706,3480.8,3480.0,2.84628631]
[1735166403535,0.7706,3480.8,3479.9,2.29891]
[1735166403739,0.7706,3480.8,3480.1,35.0]
[1735166405735,2.29832,3480.8,3480.1,35.0]
[1735166405903,0.7706,3480.7,3480.1,35.0]
[1735166406438,0.7706,3480.5,3480.1,35.0]
[1735166408419,0.7706,3480.5,3479.8,0.29892112]
[1735166408762,0.7706,3480.4,3479.3,5.71227675]
[1735166408959,3.06919,3480.4,3479.3,5.71227675]
[1735166409164,0.7706,3480.3,3479.3,5.71227675]
[1735166415267,0.7706,3480.3,3479.3,3.41298675]
[1735166415578,0.7706,3480.3,3479.4,2.29922]
[1735166415874,0.7706,3480.3,3479.5,0.57122067]
[1735166429682,0.7646,3480.1,3479.2,3.4894303]
[1735166433021,0.7646,3480.1,3479.2,2.29936]
[1735166436914,0.7646,3480.1,3479.1,0.30523]
[1735166437115,0.7808,3480.0,3479.1,0.30523]
[1735166437476,0.7808,3480.0,3479.1,2.60466]
[1735166437819,0.7808,3480.0,3479.2,0.49870792]
[1735166441327,0.7808,3480.0,3479.2,2.79806792]
[1735166442136,0.7808,3480.0,3479.3,0.98820749]
[1735166443130,0.7808,3480.0,3479.4,0.98820749]
[1735166444129,0.7808,3480.0,3479.5,2.47051872]
[1735166445341,0.7808,3480.0,3479.6,2.47051872]
[1735166446540,0.7808,3480.0,3479.7,2.47051872]
[1735166447644,0.7808,3480.0,3479.5,1.19234893]
[1735166448846,0.7808,3480.0,3479.6,3.66772581]
[1735166449937,0.7808,3480.0,3479.7,0.54562492]
[1735166450130,0.7808,3480.0,3479.7,3.0210018]
[1735166451161,0.7808,3480.0,3479.8,2.47537688]
[1735166452247,0.7808,3480.0,3479.9,2.47537688]
[1735166454249,0.7808,3480.0,3479.9,3.66772581]
[1735166458362,0.7808,3480.0,3479.9,2.47537688]
[1735166460519,0.7808,3480.0,3479.9,3.66772581]
[1735166461734,0.7808,3480.0,3479.9,2.47537688]
[1735166463037,0.7808,3480.0,3479.8,35.0]
[1735166465762,0.7808,3480.0,3479.6,1.19234893]
[1735166466460,0.7808,3480.0,3479.7,35.0]
[1735166466939,0.7808,3480.0,3479.7,37.47666515]
[1735166467966,0.7808,3480.0,3479.8,0.99066606]
[1735166468665,0.7808,3480.0,3479.7,35.0]
[1735166471733,0.7808,3480.0,3479.5,1.19234893]
[1735166472269,0.7808,3480.0,3479.6,35.0]
[1735166473580,0.7808,3480.0,3479.7,2.47683261]
[1735166474177,0.7808,3480.0,3479.8,35.0]
[1735166474746,0.7808,3480.0,3479.8,35.99073304]
[1735166475282,0.7308,3480.0,3479.8,35.99073304]
[1735166476377,0.7308,3480.0,3479.8,35.0]
[1735166478962,0.7308,3480.0,3479.6,1.19234893]
[1735166479392,0.7308,3480.0,3479.7,35.0]
[1735166479591,0.7308,3480.0,3479.7,37.4772923]
[1735166480994,0.7308,3480.0,3479.8,2.4772923]
[1735166481590,0.7308,3480.0,3479.9,35.0]
[1735166482005,0.7308,3480.0,3479.9,35.99091692]
[1735166484210,0.7308,3480.0,3479.9,35.0]
[1735166485103,0.7308,3480.0,3479.6,1.19234893]
[1735166485629,0.7308,3480.0,3479.7,35.0]
[1735166486910,0.7308,3480.0,3479.8,0.99127754]
[1735166487610,0.7308,3480.0,3479.9,35.0]
[1735166490810,0.7308,3480.0,3479.6,1.19234893]
[1735166491018,0.7308,3480.0,3479.6,1.83358959]
[1735166491179,0.7308,3480.0,3479.7,35.0]
[1735166492011,0.8008,3480.2,3479.6,1.19234893]
[1735166492319,1.20159195,3480.3,3479.7,1.19234893]
[1735166492320,0.55,3479.8,3479.7,1.19234893]
[1735166492672,2.849,3479.8,3479.7,1.19234893]
[1735166492877,4.09671685,3479.8,3479.7,8.43e-06]
[1735166493318,6.65004,3479.4,3479.3,7.87e-06]
[1735166493611,6.14767,3478.9,3478.8,6.8e-06]
[1735166493910,7.3377403,3478.9,3478.8,6.8e-06]
[1735166494114,7.3377403,3478.9,3476.8,3.4910203]
[1735166494115,3.14814,3478.2,3478.1,2.39838306]
[1735166494510,4.3382103,3478.2,3478.1,2.39838306]
[1735166494711,4.77203133,3478.2,3478.1,2.39838306]
[1735166495618,4.77203133,3478.2,3477.4,35.0]
[1735166495619,2.8501,3478.1,3477.4,35.0]
[1735166499995,0.8008,3478.0,3477.4,35.0]
[1735166500714,0.55,3477.9,3477.4,35.0]
[1735166502521,0.8008,3478.3,3477.4,35.0]
[1735166502720,2.00379649,3478.6,3477.5,4.0651101]
[1735166502893,0.8008,3478.6,3477.6,0.7952]
[1735166503100,1.20299649,3478.9,3477.8,35.0]
[1735166503809,1.20299649,3478.9,3478.2,2.30003]
[1735166504215,1.20299649,3478.9,3478.3,2.29995]
[1735166504385,1.36764309,3479.3,3478.4,0.34900203]
[1735166504996,0.8008,3479.3,3478.4,0.34900203]
[1735166505481,0.55,3479.2,3478.4,0.34900203]
[1735166507519,0.55,3479.2,3478.5,35.0]
[1735166510929,0.55,3479.2,3478.4,0.34900203]
[1735166512523,0.55,3479.2,3478.3,2.29996]
[1735166512727,0.55,3479.2,3478.4,0.8333]
[1735166516248,0.55,3479.2,3478.4,3.13316]
[1735166517114,2.29906,3479.7,3478.4,0.8333]
[1735166517312,1.99069649,3480.1,3479.1,0.8333]
[1735166517540,1.20299649,3480.1,3479.1,0.8333]
[1735166517740,1.20299649,3480.1,3479.2,0.8333]
[1735166517958,1.20299649,3480.1,3479.7,2.29901]
[1735166518110,1.20299649,3480.1,3479.8,0.8333]
[1735166518615,1.20299649,3480.4,3479.8,0.8333]
[1735166518811,1.20299649,3480.4,3479.8,3.13226]
[1735166519718,1.20299649,3480.4,3479.9,2.29891]
[1735166520110,0.7877,3481.0,3479.9,2.29891]
[1735166520352,0.34267209,3480.9,3479.9,2.29891]
[1735166521462,0.55,3480.8,3479.9,2.29891]
[1735166523847,1.37683433,3481.3,3479.8,0.8333]
[1735166524055,1.37683433,3481.3,3480.2,2.2987]
[1735166524937,0.58213433,3481.3,3480.3,0.7817]
[1735166525142,0.55,3481.2,3480.3,3.08034]
[1735166525366,0.55,3481.2,3480.3,3.388374]
[1735166526039,0.55,3481.3,3480.3,3.388374]
[1735166526452,0.55,3481.5,3480.3,3.388374]
[1735166526998,0.55,3481.3,3480.3,3.388374]
[1735166528042,0.58643182,3481.4,3480.6,2.29844]
[1735166530901,0.58643182,3481.4,3480.7,0.7817]
[1735166532080,2.29773,3481.7,3480.7,0.7817]
[1735166532285,0.55,3481.6,3480.7,0.7817]
[1735166533699,0.57955178,3481.5,3480.7,0.7817]
[1735166533899,0.57955178,3481.5,3480.7,1.12359774]
[1735166534265,0.55,3481.6,3480.7,1.12359774]
[1735166534902,2.84779,3481.6,3480.7,0.7817]
[1735166538647,3.41713364,3481.6,3480.7,0.7817]
[1735166539546,4.60561734,3482.7,3480.7,0.7935]
[1735166539845,4.61266281,3482.7,3481.1,0.7935]
[1735166540014,1.20299649,3482.8,3481.2,0.7935]
[1735166540197,1.20299649,3482.8,3481.9,2.29759]
[1735166540398,1.20299649,3482.8,3482.0,0.7935]
[1735166540614,1.20299649,3482.8,3482.1,0.309109]
[1735166541614,4.93582085,3483.1,3482.1,0.309109]
[1735166542459,0.55,3483.0,3482.1,0.309109]
[1735166543452,2.84687,3483.0,3482.1,0.309109]
[1735166543675,2.84687,3483.0,3482.2,0.3400129]
[1735166543813,0.55,3483.0,3482.2,0.3400129]
[1735166544120,0.55,3483.1,3482.3,0.7994]
[1735166545110,0.792,3482.9,3482.3,0.7994]
[1735166545347,0.792,3482.9,3480.6,0.7994]
[1735166545348,0.792,3482.1,3480.6,0.7994]
[1735166545550,2.63902085,3481.7,3479.9,3.20539099]
[1735166545750,2.29806,3481.2,3480.1,1.19086034]
[1735166546914,2.29806,3481.2,3480.2,0.7994]
[1735166547227,2.29806,3481.2,3480.3,0.42890903]
[1735166549641,2.29806,3481.2,3480.2,0.7994]
[1735166562186,1.342,3481.6,3480.2,0.7994]
[1735166562380,0.55,3481.2,3480.2,2.2987]
[1735166564589,0.55,3481.2,3479.9,0.8115]
[1735166564775,0.55,3481.2,3479.3,1.19086034]
[1735166564776,0.55,3480.1,3479.3,1.19086034]
[1735166565084,2.29891,3479.9,3479.3,1.19086034]
[1735166565391,0.364211,3479.8,3479.3,1.19086034]
[1735166565545,0.364211,3479.8,3478.8,4.30200034]
[1735166566988,0.364211,3479.8,3478.8,3.11114]
[1735166572306,0.364211,3479.8,3478.9,35.0]
[1735166572600,2.29891,3479.9,3478.9,35.0]
[1735166576851,2.8802361,3479.9,3478.9,35.0]
[1735166583453,0.55,3479.8,3478.8,0.8115]
[1735166583657,0.7784,3479.6,3478.6,2.29975]
[1735166583949,0.7784,3479.6,3478.7,35.312425]
[1735166586452,2.84924,3479.5,3478.7,35.312425]
[1735166586653,2.84924,3479.5,3478.7,35.0]
[1735166589182,0.7784,3479.4,3478.7,35.0]
[1735166590123,2.29964,3478.8,3477.7,2.30035]
[1735166590428,2.63902085,3479.1,3477.3,2.38367184]
[1735166590429,0.7784,3478.5,3477.4,2.61225388]
[1735166590631,0.7784,3478.3,3477.6,36.19086034]
[1735166591232,1.141231,3478.3,3477.6,35.0]
[1735166591559,0.891631,3478.3,3477.6,35.0]
[1735166593042,2.662811,3478.3,3477.6,35.0]
[1735166593770,2.662811,3478.3,3477.0,0.8245]
[1735166594064,2.662811,3478.3,3477.1,2.30076]
[1735166594263,2.662811,3478.3,3477.2,35.0]
[1735166594471,0.7784,3478.2,3477.2,35.0]
[1735166597656,3.07844,3478.2,3477.2,35.0]
[1735166599371,2.30018,3478.0,3477.2,35.0]
[1735166599606,0.7606,3477.9,3477.2,35.0]
[1735166600493,2.30041,3477.7,3477.2,35.0]
[1735166600657,0.7606,3477.6,3477.2,35.0]
[1735166609001,0.7606,3477.6,3476.7,2.30102]
[1735166609619,0.7606,3477.6,3476.8,35.0]
[1735166612511,0.7741,3477.4,3476.8,35.0]
[1735166612870,0.55,3477.1,3476.3,4.94031085]
[1735166613078,0.7741,3477.0,3476.1,2.30142]
[1735166613380,0.7741,3477.0,3476.1,37.30142]
[1735166614134,0.7741,3477.0,3476.1,35.0]
[1735166614351,0.55,3476.9,3476.1,37.84628631]
[1735166617031,0.55,3476.8,3476.1,37.84628631]
[1735166620180,0.55,3476.8,3476.1,2.84628631]
[1735166620354,0.55,3476.8,3475.9,2.30155]
[1735166620680,0.55,3476.8,3476.0,35.0]
[1735166621355,2.88431923,3477.5,3476.0,35.0]
[1735166621356,0.55,3476.6,3476.0,35.0]
[1735166626366,0.55,3476.6,3475.7,2.30169]
[1735166626888,0.8064,3476.5,3475.7,2.30169]
[1735166627191,0.8064,3476.5,3475.7,2.531859]
[1735166627763,0.8064,3476.5,3475.7,0.230169]
[1735166628456,0.8064,3476.5,3475.8,35.0]
[1735166629091,0.55,3475.9,3475.0,2.30215]
[1735166629249,3.10789,3476.0,3475.0,2.30215]
[1735166629453,0.55,3475.9,3475.1,35.313005]
[1735166630394,0.8064,3475.8,3475.1,35.313005]
[1735166630755,0.55,3475.7,3475.1,35.313005]
[1735166633414,0.55,3475.7,3475.1,0.313005]
[1735166633885,0.55,3475.7,3475.2,35.0]
[1735166639623,0.55,3475.7,3475.2,35.94645708]
[1735166639821,1.20299649,3476.6,3475.3,0.8067]
[1735166640121,1.20299649,3476.6,3476.0,0.8067]
[1735166640482,1.20299649,3476.6,3476.1,35.0]
[1735166640683,2.30136,3476.2,3476.1,35.0]
[1735166640892,0.7575,3475.9,3474.6,0.57076369]
[1735166641124,0.7575,3475.9,3474.7,3.49321034]
[1735166641295,3.05909,3475.9,3474.8,2.30228]
[1735166641494,0.7575,3475.9,3474.8,2.30228]
[1735166641699,0.7575,3475.9,3474.9,2.84628631]
[1735166642212,0.55,3475.8,3474.8,2.30228]
[1735166642614,0.55,3475.8,3474.9,35.0]
[1735166643594,2.85163,3475.8,3474.9,35.0]
[1735166644830,0.55,3475.8,3474.9,37.30222]
[1735166644989,3.84201734,3476.4,3475.0,0.8177]
[1735166644990,1.20299649,3476.4,3475.0,0.8177]
[1735166645329,1.20299649,3476.4,3475.7,3.11939]
[1735166645653,1.20299649,3476.4,3475.8,35.0]
[1735166647234,0.7575,3476.8,3475.8,35.0]
[1735166647438,0.55,3476.7,3475.8,35.0]
[1735166647642,0.55,3476.7,3475.9,2.84628631]
[1735166648816,0.55,3476.7,3475.7,3.11939]
[1735166649233,0.55,3476.7,3475.8,35.0]
[1735166649605,0.55,3476.7,3475.7,3.11939]
[1735166650006,0.55,3476.7,3475.7,38.11939]
[1735166650338,2.30111,3476.6,3475.5,2.30181]
[1735166650502,0.7575,3476.5,3475.6,0.311951]
[1735166652429,1.20299649,3476.7,3475.9,2.30156]
[1735166652616,1.20299649,3476.7,3476.0,0.8177]
[1735166652821,1.20299649,3476.7,3476.1,2.33012454]
[1735166653133,1.20299649,3476.7,3476.2,0.31478245]
[1735166653309,1.20299649,3476.7,3476.3,0.02876329]
[1735166653642,1.20299649,3476.7,3476.3,2.30127]
[1735166653831,1.20299649,3476.7,3476.4,35.0]
[1735166654747,3.50349649,3477.6,3476.4,35.0]
[1735166654921,3.50349649,3477.6,3476.5,2.84628631]
[1735166655245,2.3005,3477.5,3476.5,2.84628631]
[1735166655444,2.3005,3477.5,3476.3,2.30127]
[1735166655742,2.3005,3477.5,3476.2,0.31478245]
[1735166655951,2.3005,3477.5,3476.3,2.30124]
[1735166658862,1.20299649,3477.6,3476.0,0.8177]
[1735166659062,1.20299649,3477.6,3476.5,2.30114]
[1735166659229,4.10663463,3477.7,3476.6,3.09697]
[1735166659230,1.20299649,3477.5,3476.6,3.09697]
[1735166660566,1.20299649,3477.6,3476.6,3.09697]
[1735166662168,1.20299649,3477.6,3476.7,2.30102]
[1735166662462,1.20299649,3477.6,3476.8,0.309692]
[1735166663242,0.8316,3477.7,3476.8,0.309692]
[1735166667877,2.03459649,3478.0,3476.9,0.8237]
[1735166668179,1.20299649,3478.0,3477.2,0.8237]
[1735166668963,1.20299649,3478.0,3477.2,0.85245284]
[1735166669163,1.20299649,3478.0,3477.4,2.30054]
[1735166669359,1.20299649,3478.0,3477.5,0.312424]
[1735166669577,0.8316,3478.3,3477.5,0.312424]
[1735166670990,0.8316,3478.3,3477.5,2.612914]
[1735166673815,0.8316,3478.3,3477.5,0.312424]
[1735166674092,0.8316,3478.3,3477.6,2.30039]
[1735166675561,0.8316,3478.3,3477.3,3.02874936]
[1735166675758,0.8316,3478.3,3477.5,2.30043]
[1735166676094,0.8316,3478.3,3477.6,2.30041]
[1735166676306,0.7762,3478.7,3477.7,0.82]
[1735166676459,2.29965,3478.8,3477.8,0.312041]
[1735166680113,0.7762,3479.0,3477.8,0.312041]
[1735166680279,0.7762,3479.0,3478.0,2.30014]
[1735166681295,0.7762,3479.0,3478.3,2.29997]
[1735166681478,0.7762,3479.0,3478.3,0.82]
[1735166681677,0.7762,3479.7,3478.4,5.2999]
[1735166681931,0.7762,3479.7,3478.5,3.61199]
[1735166682094,0.7762,3479.7,3478.8,2.29957]
[1735166683279,0.7762,3479.7,3478.9,3.11957]
[1735166683771,0.7762,3479.7,3479.0,2.29951]
[1735166685719,0.7762,3479.7,3479.1,2.29939]
[1735166685919,0.7762,3479.7,3479.2,0.311939]
[1735166687548,0.7762,3479.7,3479.1,2.29939]
[1735166687760,0.8022,3479.5,3478.5,3.0]
[1735166687936,0.8022,3479.5,3478.4,2.29987]
[1735166688139,0.8022,3479.4,3478.4,2.29987]
[1735166689753,0.8022,3479.4,3478.1,3.0]
[1735166689918,0.8022,3479.3,3478.3,3.0]
[1735166692155,0.8022,3479.3,3478.5,3.0]
[1735166692562,0.8022,3479.3,3478.3,5.29995]
[1735166692731,0.8022,3479.2,3478.3,2.29995]
[1735166692934,0.8022,3479.2,3478.4,35.0]
[1735166693153,0.310151,3479.1,3478.4,35.0]
[1735166695865,0.8022,3479.2,3478.4,35.0]
[1735166701091,0.8022,3479.2,3478.5,2.29982]
[1735166704412,0.8022,3479.2,3478.6,35.0]
[1735166710115,0.8022,3479.2,3478.6,37.29973]
[1735166716035,0.8022,3479.2,3478.6,35.0]
[1735166719145,0.8022,3479.2,3478.5,2.29984]
[1735166719838,0.8022,3479.2,3478.5,37.29984]
[1735166721320,0.8022,3479.2,3478.5,40.14612631]
[1735166727587,0.8022,3479.2,3478.6,0.98990993]
[1735166728176,0.8022,3479.2,3478.7,35.0]
[1735166732083,3.10158,3479.2,3478.7,35.0]
[1735166732290,3.10158,3479.2,3478.4,1.39086034]
[1735166732291,0.8127,3478.8,3478.4,1.39086034]
[1735166734313,2.01569649,3478.8,3478.4,0.2]
[1735166735421,0.8127,3478.8,3478.4,0.2]
[1735166736208,3.50258649,3478.9,3478.5,35.0]
[1735166736209,3.11241,3478.7,3478.5,35.0]
[1735166736386,3.11241,3478.7,3478.4,0.2]
[1735166736387,0.8127,3478.7,3478.4,0.2]
[1735166737003,0.8127,3478.7,3478.4,35.2]
[1735166741116,2.01569649,3478.7,3478.4,35.2]
[1735166741637,0.8127,3478.6,3478.4,0.2]
[1735166741837,3.11287,3478.0,3477.9,1.19086034]
[1735166742007,4.85363069,3478.0,3477.9,1.19086034]
[1735166744111,0.8127,3477.9,3476.4,35.0]
[1735166744311,2.85057,3477.4,3476.4,35.0]
[1735166744517,0.8127,3477.3,3476.4,35.0]
[1735166745240,0.8127,3477.3,3475.9,3.0]
[1735166745742,0.8127,3477.3,3476.3,35.0]
[1735166745917,0.8127,3477.3,3476.4,2.84628631]
[1735166746114,0.8127,3477.3,3476.3,35.0]
[1735166751443,2.3007,3477.2,3476.3,35.0]
[1735166751743,0.7659,3477.1,3476.0,2.30148]
[1735166752243,0.7659,3477.1,3476.1,35.0]
[1735166754543,0.7659,3477.1,3476.1,38.12307]
[1735166754842,0.7659,3477.1,3476.2,2.84628631]
[1735166758111,0.7659,3477.1,3476.1,3.12307]
[1735166758313,0.7659,3477.1,3476.3,35.0]
[1735166760027,3.06649,3477.4,3476.3,35.0]
[1735166760364,0.7659,3478.0,3477.1,0.8217]
[1735166760854,1.96997107,3478.0,3477.1,0.8217]
[1735166761055,2.57759384,3478.0,3477.1,0.8217]
[1735166761714,1.96997107,3478.0,3477.1,0.8217]
[1735166761915,1.20407107,3478.0,3477.6,0.8144]
[1735166762514,0.8277,3478.4,3477.7,35.0]
[1735166765988,0.8277,3478.4,3477.7,37.30035]
[1735166766152,0.8277,3478.4,3478.1,2.30009]
[1735166766353,0.8277,3478.4,3478.2,0.230009]
[1735166766549,0.8277,3478.7,3478.2,0.230009]
[1735166766965,0.8277,3478.7,3478.3,35.0]
[1735166767195,0.8277,3478.7,3478.2,2.530039]
[1735166767693,0.8277,3478.7,3478.2,37.530039]
[1735166768369,0.8277,3478.7,3478.2,2.530039]
[1735166770322,0.8277,3478.7,3478.3,0.2530039]
[1735166770615,0.8277,3478.7,3477.9,2.30017]
[1735166770911,0.8277,3478.7,3478.0,35.0]
[1735166771274,0.8277,3478.7,3478.0,37.30013]
[1735166776878,0.8277,3478.7,3478.1,2.3001]
[1735166777708,0.7971,3479.2,3478.1,2.3001]
[1735166777917,0.7971,3479.2,3478.2,2.84628631]
[1735166779936,0.7971,3479.2,3478.4,2.2999]
[1735166780296,0.7971,3479.2,3478.5,35.0]
[1735166781094,0.7971,3479.2,3478.5,37.29982]
[1735166781300,0.7971,3479.2,3478.5,35.0]
[1735166781515,0.7971,3479.2,3478.6,2.84628631]
[1735166781716,0.7971,3479.2,3478.7,2.29969]
[1735166782738,0.7971,3480.1,3479.1,2.29944]
[1735166783900,0.7971,3480.1,3479.2,2.29937]
[1735166784240,0.7971,3480.1,3478.8,0.8259]
[1735166784444,0.7971,3480.1,3478.9,2.32829759]
[1735166785133,0.7971,3480.1,3479.3,2.29929]
[1735166785313,0.7971,3480.1,3479.4,2.29923]
[1735166785514,0.7971,3480.1,3479.5,35.0]
[1735166785711,0.7971,3480.1,3479.6,2.29908]
[1735166785938,0.7971,3480.1,3479.7,2.32777415]
[1735166786298,0.7971,3480.1,3479.8,35.0]
[1735166788349,0.7971,3480.8,3479.8,35.0]
[1735166788648,0.7971,3480.8,3479.9,2.2989]
[1735166788841,0.7971,3480.8,3480.0,2.84628631]
[1735166791557,0.7971,3480.8,3480.0,5.14510631]
[1735166791760,0.7971,3480.8,3480.0,2.29882]
[1735166792662,0.7971,3480.8,3480.1,2.29874]
[1735166793263,0.7971,3480.8,3480.2,2.29869]
[1735166798497,0.7971,3480.8,3480.3,2.29864]
[1735166799412,2.29769,3481.8,3480.1,3.0]
[1735166799413,0.8002,3481.8,3480.7,2.29838]
[1735166799562,0.8002,3481.8,3480.8,5.604858]
[1735166800194,0.8002,3481.8,3480.8,3.306558]
[1735166800400,0.8002,3481.8,3480.9,5.29824]
[1735166802502,0.8002,3481.8,3480.9,2.29824]
[1735166802690,0.309773,3481.7,3480.9,2.29824]
[1735166805001,0.8002,3481.6,3480.9,2.29824]
[1735166805177,0.8002,3481.6,3480.7,2.29836]
[1735166806392,0.8002,3481.6,3480.8,2.29832]
[1735166807978,0.8002,3481.6,3480.6,2.29845]
[1735166808172,0.7936,3481.4,3480.7,2.29832]
[1735166809815,0.7936,3481.4,3480.4,2.29853]
[1735166810220,0.7936,3481.3,3480.1,2.29874]
[1735166810525,0.7936,3481.2,3480.1,2.29874]
[1735166812129,0.7936,3481.2,3480.2,35.0]
[1735166812429,0.7936,3481.0,3480.2,35.0]
[1735166816533,0.7936,3481.0,3480.1,2.29874]
[1735166819817,0.7936,3481.0,3480.2,35.0]
[1735166831772,1.99141922,3481.0,3480.2,35.0]
[1735166832887,1.99141922,3481.0,3480.2,37.29869]
[1735166833114,1.99141922,3481.0,3480.3,2.84628631]
[1735166833444,1.99141922,3481.0,3480.2,2.29869]
[1735166833647,1.99141922,3481.0,3480.3,35.0]
[1735166835478,1.19781922,3481.0,3480.2,2.29869]
[1735166835687,0.7517,3480.9,3480.2,2.29869]
[1735166835983,0.7517,3480.9,3480.3,0.34884436]
[1735166837259,0.7517,3480.9,3480.4,35.0]
[1735166837454,1.98201922,3481.0,3480.7,2.29838]
[1735166838072,1.19781922,3481.0,3480.7,2.29838]
[1735166838263,1.19781922,3481.0,3480.8,35.0]
[1735166838461,1.19781922,3481.0,3480.9,2.84628631]